[Event "*** Titled Tuesday 3|2 Blitz"]
[Site "Chess.com"]
[Date "2017.03.07"]
[Round "7"]
[White "macko06"]
[Black "jk13"]
[Result "0-1"]
[WhiteElo "2336"]
[BlackElo "2499"]
[TimeControl "180+2"]
[EndTime "14:34:49 PST"]
[Termination "jk13 won by resignation"]

1. e4 {[%clk 0:03:02]} 1... e5 {[%clk 0:03:00.6]} 2. Nf3 {[%clk 0:03:02.8]} 2...
Nc6 {[%clk 0:03:02.3]} 3. Bb5 {[%clk 0:03:04.1]} 3... Nf6 {[%clk 0:03:03.9]} 4.
d3 {[%clk 0:03:04.7]} 4... Bc5 {[%clk 0:03:04.7]} 5. c3 {[%clk 0:03:05.8]} 5...
d6 {[%clk 0:03:06.1]} 6. O-O {[%clk 0:03:06.3]} 6... O-O {[%clk 0:03:07.2]} 7.
Re1 {[%clk 0:03:06.7]} 7... a6 {[%clk 0:03:08.5]} 8. Bxc6 {[%clk 0:03:06.6]}
8... bxc6 {[%clk 0:03:08.7]} 9. h3 {[%clk 0:03:08.1]} 9... Ba7 {[%clk
0:03:09.1]} 10. d4 {[%clk 0:03:06.1]} 10... exd4 {[%clk 0:02:53.4]} 11. cxd4
{[%clk 0:03:06.8]} 11... Re8 {[%clk 0:02:55.1]} 12. Nc3 {[%clk 0:03:07.4]} 12...
h6 {[%clk 0:02:53.7]} 13. b3 {[%clk 0:03:01.4]} 13... Bb6 {[%clk 0:02:42.4]} 14.
a3 {[%clk 0:02:47.9]} 14... c5 {[%clk 0:02:12.6]} 15. dxc5 {[%clk 0:02:44.7]}
15... Bxc5 {[%clk 0:02:13.5]} 16. b4 {[%clk 0:02:44.4]} 16... Ba7 {[%clk
0:02:13.1]} 17. Bb2 {[%clk 0:02:44.9]} 17... Bb7 {[%clk 0:02:13.3]} 18. Qd3
{[%clk 0:02:41.1]} 18... Re6 {[%clk 0:01:33.5]} 19. Rad1 {[%clk 0:02:34.8]}
19... Qe7 {[%clk 0:01:25]} 20. Nd4 {[%clk 0:02:33.1]} 20... Bxe4 {[%clk
0:01:01.7]} 21. Nxe4 {[%clk 0:01:27.3]} 21... Rxe4 {[%clk 0:01:03.6]} 22. Nc6
{[%clk 0:01:24.4]} 22... Rxe1+ {[%clk 0:01:03.9]} 0-1

[Event "*** Titled Tuesday 3|2 Blitz"]
[Site "Chess.com"]
[Date "2017.03.07"]
[Round "7"]
[White "GMMelik"]
[Black "bancsoo"]
[Result "1-0"]
[WhiteElo "2434"]
[BlackElo "2616"]
[TimeControl "180+2"]
[EndTime "14:35:36 PST"]
[Termination "GMMelik won by resignation"]

1. e4 {[%clk 0:03:02]} 1... e5 {[%clk 0:03:00.6]} 2. Nf3 {[%clk 0:03:01.9]} 2...
Nc6 {[%clk 0:03:01.7]} 3. Bb5 {[%clk 0:03:00.2]} 3... a6 {[%clk 0:03:02.3]} 4.
Bxc6 {[%clk 0:02:58.6]} 4... dxc6 {[%clk 0:03:02.1]} 5. Nc3 {[%clk 0:02:53.4]}
5... f6 {[%clk 0:03:00.9]} 6. d4 {[%clk 0:02:54.2]} 6... exd4 {[%clk 0:03:01.3]}
7. Nxd4 {[%clk 0:02:55.2]} 7... c5 {[%clk 0:03:01.7]} 8. Nde2 {[%clk 0:02:56.4]}
8... Qxd1+ {[%clk 0:03:02.2]} 9. Nxd1 {[%clk 0:02:58.3]} 9... Bd7 {[%clk
0:03:01.6]} 10. Bf4 {[%clk 0:02:57.3]} 10... O-O-O {[%clk 0:03:01.9]} 11. Ne3
{[%clk 0:02:57.1]} 11... Ne7 {[%clk 0:03:02.5]} 12. O-O-O {[%clk 0:02:51.5]}
12... Bc6 {[%clk 0:02:48.9]} 13. Rxd8+ {[%clk 0:02:48.3]} 13... Kxd8 {[%clk
0:02:49.6]} 14. Rd1+ {[%clk 0:02:50.2]} 14... Kc8 {[%clk 0:02:51.1]} 15. f3
{[%clk 0:02:40]} 15... Ng6 {[%clk 0:02:48.1]} 16. Bg3 {[%clk 0:02:39.8]} 16...
Be7 {[%clk 0:02:48.5]} 17. Nf5 {[%clk 0:02:36.3]} 17... Rg8 {[%clk 0:02:38]} 18.
Nf4 {[%clk 0:02:33]} 18... Bd8 {[%clk 0:02:29.8]} 19. Nh5 {[%clk 0:02:27.4]}
19... Ne7 {[%clk 0:02:19]} 20. Nhxg7 {[%clk 0:02:24.1]} 20... Nxf5 {[%clk
0:02:19.7]} 21. Nxf5 {[%clk 0:02:25.5]} 21... Bd7 {[%clk 0:02:17.8]} 22. Ne3
{[%clk 0:02:21.6]} 22... Be6 {[%clk 0:02:05]} 23. b3 {[%clk 0:02:21.6]} 23... h5
{[%clk 0:01:57.4]} 24. c4 {[%clk 0:02:17.1]} 24... Be7 {[%clk 0:01:35.4]} 25.
Kc2 {[%clk 0:02:15]} 25... b6 {[%clk 0:01:34.3]} 26. Rd2 {[%clk 0:02:11]} 26...
Bd8 {[%clk 0:01:30.1]} 27. a4 {[%clk 0:02:08.5]} 27... Be7 {[%clk 0:01:29.7]}
28. Bh4 {[%clk 0:02:05.5]} 28... Bd8 {[%clk 0:01:20]} 29. Nd5 {[%clk 0:01:58.3]}
29... Rf8 {[%clk 0:01:09]} 30. e5 {[%clk 0:01:46.9]} 30... fxe5 {[%clk 0:00:29]}
31. Bxd8 {[%clk 0:01:44.5]} 31... Kxd8 {[%clk 0:00:30.3]} 32. Nf4+ {[%clk
0:01:36.3]} 1-0

[Event "*** Titled Tuesday 3|2 Blitz"]
[Site "Chess.com"]
[Date "2017.03.07"]
[Round "7"]
[White "Smirnov_Pavel"]
[Black "vpantev"]
[Result "1-0"]
[WhiteElo "2648"]
[BlackElo "2465"]
[TimeControl "180+2"]
[EndTime "14:35:36 PST"]
[Termination "Smirnov_Pavel won by resignation"]

1. d4 {[%clk 0:03:02]} 1... Nf6 {[%clk 0:02:59.9]} 2. c4 {[%clk 0:03:03.4]} 2...
e6 {[%clk 0:03:00.4]} 3. Nf3 {[%clk 0:03:04.9]} 3... Bb4+ {[%clk 0:03:00.2]} 4.
Nbd2 {[%clk 0:03:04.9]} 4... b6 {[%clk 0:03:00.8]} 5. a3 {[%clk 0:03:05]} 5...
Bxd2+ {[%clk 0:03:01.2]} 6. Qxd2 {[%clk 0:03:06.1]} 6... Bb7 {[%clk 0:03:02.7]}
7. e3 {[%clk 0:03:06.9]} 7... a5 {[%clk 0:03:02.3]} 8. Be2 {[%clk 0:03:07.8]}
8... a4 {[%clk 0:03:02.3]} 9. O-O {[%clk 0:03:08.5]} 9... O-O {[%clk 0:03:03.1]}
10. Rd1 {[%clk 0:03:08.9]} 10... d6 {[%clk 0:03:04.2]} 11. Qc2 {[%clk
0:03:09.7]} 11... Nbd7 {[%clk 0:03:02.8]} 12. Bd2 {[%clk 0:03:08.8]} 12... Qe7
{[%clk 0:03:00.4]} 13. Be1 {[%clk 0:03:09.7]} 13... Be4 {[%clk 0:02:58.9]} 14.
Qc3 {[%clk 0:03:06.3]} 14... Bb7 {[%clk 0:02:58.2]} 15. Nd2 {[%clk 0:03:06.2]}
15... Ne4 {[%clk 0:02:58.9]} 16. Nxe4 {[%clk 0:03:06.5]} 16... Bxe4 {[%clk
0:02:59.7]} 17. f3 {[%clk 0:03:07.9]} 17... Bb7 {[%clk 0:03:00.3]} 18. Bf2
{[%clk 0:03:03]} 18... f5 {[%clk 0:02:59.4]} 19. Rac1 {[%clk 0:03:03.2]} 19...
Kh8 {[%clk 0:02:56.5]} 20. Qb4 {[%clk 0:03:00.6]} 20... Bc6 {[%clk 0:02:51]} 21.
Rd2 {[%clk 0:02:57.2]} 21... e5 {[%clk 0:02:45.1]} 22. Qc3 {[%clk 0:02:46.9]}
22... e4 {[%clk 0:02:31.4]} 23. f4 {[%clk 0:02:41.6]} 23... Bb7 {[%clk
0:02:27.2]} 24. Kh1 {[%clk 0:02:40]} 24... Qf7 {[%clk 0:02:24]} 25. Rg1 {[%clk
0:02:38.8]} 25... Nf6 {[%clk 0:02:23.5]} 26. d5 {[%clk 0:02:38.4]} 26... Bc8
{[%clk 0:02:17.4]} 27. h3 {[%clk 0:02:34.4]} 27... Bd7 {[%clk 0:02:15.8]} 28.
Bh4 {[%clk 0:02:28.9]} 28... h6 {[%clk 0:02:05.6]} 29. g4 {[%clk 0:02:23.8]}
29... Nh7 {[%clk 0:01:52.2]} 30. gxf5 {[%clk 0:02:07.8]} 30... Bxf5 {[%clk
0:01:50.8]} 31. Bh5 {[%clk 0:02:08.1]} 31... Qd7 {[%clk 0:01:48.8]} 32. Rdg2
{[%clk 0:02:05.8]} 32... Rg8 {[%clk 0:01:49.2]} 33. Kh2 {[%clk 0:01:55.4]} 33...
Raf8 {[%clk 0:01:34.8]} 34. Rg3 {[%clk 0:01:33]} 34... Ra8 {[%clk 0:01:32.6]}
35. Bg6 {[%clk 0:01:28.5]} 35... Raf8 {[%clk 0:01:29.8]} 36. Qd4 {[%clk
0:01:26.1]} 36... Ra8 {[%clk 0:01:22.2]} 37. Bxf5 {[%clk 0:01:25.2]} 37... Qxf5
{[%clk 0:01:22.8]} 38. Rxg7 {[%clk 0:01:26.4]} 1-0

[Event "*** Titled Tuesday 3|2 Blitz"]
[Site "Chess.com"]
[Date "2017.03.07"]
[Round "7"]
[White "Izoria123"]
[Black "Malev212"]
[Result "1-0"]
[WhiteElo "2566"]
[BlackElo "2476"]
[TimeControl "180+2"]
[EndTime "14:35:42 PST"]
[Termination "Izoria123 won by resignation"]

1. Nf3 {[%clk 0:03:02]} 1... e6 {[%clk 0:03:00.1]} 2. g3 {[%clk 0:03:01.9]} 2...
f5 {[%clk 0:03:01]} 3. Bg2 {[%clk 0:03:03.8]} 3... Nf6 {[%clk 0:03:02.5]} 4. O-O
{[%clk 0:03:05.6]} 4... Nc6 {[%clk 0:03:01.6]} 5. c4 {[%clk 0:03:05.9]} 5... d5
{[%clk 0:03:01.4]} 6. d4 {[%clk 0:03:00.1]} 6... Ne4 {[%clk 0:03:02]} 7. Nc3
{[%clk 0:02:52.6]} 7... Bb4 {[%clk 0:03:01]} 8. Qb3 {[%clk 0:02:51.1]} 8... Bxc3
{[%clk 0:02:59.9]} 9. bxc3 {[%clk 0:02:53]} 9... O-O {[%clk 0:03:00.5]} 10. cxd5
{[%clk 0:02:47.6]} 10... exd5 {[%clk 0:03:01.3]} 11. Nd2 {[%clk 0:02:44.6]}
11... Na5 {[%clk 0:02:52.9]} 12. Qc2 {[%clk 0:02:44.9]} 12... Be6 {[%clk
0:02:43]} 13. f3 {[%clk 0:02:24.6]} 13... Nxd2 {[%clk 0:02:39.7]} 14. Bxd2
{[%clk 0:02:26.5]} 14... Nc4 {[%clk 0:02:39.4]} 15. Rae1 {[%clk 0:02:25.3]}
15... Qd7 {[%clk 0:02:32.9]} 16. Bf4 {[%clk 0:02:25.1]} 16... h6 {[%clk
0:02:31.4]} 17. h4 {[%clk 0:02:25.6]} 17... Rae8 {[%clk 0:02:31.5]} 18. e4
{[%clk 0:02:19.7]} 18... c6 {[%clk 0:02:26.2]} 19. exf5 {[%clk 0:02:03.7]} 19...
Bxf5 {[%clk 0:02:26.1]} 20. Qc1 {[%clk 0:02:05.6]} 20... Bh3 {[%clk 0:02:12.8]}
21. Be5 {[%clk 0:02:00.1]} 21... Bxg2 {[%clk 0:02:11.3]} 22. Kxg2 {[%clk
0:02:02]} 22... Qf5 {[%clk 0:02:00.7]} 23. f4 {[%clk 0:02:00.4]} 23... Re6
{[%clk 0:02:01.2]} 24. Qd1 {[%clk 0:02:00.9]} 24... h5 {[%clk 0:01:59.7]} 25. g4
{[%clk 0:01:53.4]} 25... hxg4 {[%clk 0:01:52.2]} 26. Kg3 {[%clk 0:01:54.2]}
26... Rfe8 {[%clk 0:01:48.7]} 27. Rf2 {[%clk 0:01:44.6]} 27... Nd6 {[%clk
0:01:45.7]} 28. Rfe2 {[%clk 0:01:38.6]} 28... Ne4+ {[%clk 0:01:44.1]} 29. Rxe4
{[%clk 0:01:39.8]} 29... dxe4 {[%clk 0:01:44]} 30. Qe2 {[%clk 0:01:36.6]} 30...
g6 {[%clk 0:01:33.7]} 31. Qxe4 {[%clk 0:01:30.6]} 31... Qxe4 {[%clk 0:01:22.9]}
32. Rxe4 {[%clk 0:01:32.5]} 32... b5 {[%clk 0:01:21.3]} 33. Kxg4 {[%clk
0:01:31.5]} 33... R6e7 {[%clk 0:01:20.9]} 34. Kg5 {[%clk 0:01:26]} 34... Kf7
{[%clk 0:01:20.8]} 35. Re2 {[%clk 0:01:17.3]} 35... Ke6 {[%clk 0:01:21.1]} 36.
Bf6+ {[%clk 0:01:07.1]} 1-0

[Event "*** Titled Tuesday 3|2 Blitz"]
[Site "Chess.com"]
[Date "2017.03.07"]
[Round "7"]
[White "Vamostodorecto"]
[Black "A-Fier"]
[Result "1-0"]
[WhiteElo "2398"]
[BlackElo "2499"]
[TimeControl "180+2"]
[EndTime "14:35:56 PST"]
[Termination "Vamostodorecto won by resignation"]

1. d4 {[%clk 0:03:02]} 1... Nf6 {[%clk 0:02:59.2]} 2. c4 {[%clk 0:03:02.2]} 2...
g6 {[%clk 0:03:00.6]} 3. Nc3 {[%clk 0:03:03.1]} 3... Bg7 {[%clk 0:03:01.7]} 4.
e4 {[%clk 0:03:03.6]} 4... O-O {[%clk 0:03:02.8]} 5. Be2 {[%clk 0:03:04.7]} 5...
d6 {[%clk 0:03:04]} 6. Nf3 {[%clk 0:03:05.7]} 6... e5 {[%clk 0:03:04.6]} 7. O-O
{[%clk 0:03:06.7]} 7... Nc6 {[%clk 0:03:05.6]} 8. d5 {[%clk 0:03:07.9]} 8... Ne7
{[%clk 0:03:06.7]} 9. Ne1 {[%clk 0:03:09]} 9... Nd7 {[%clk 0:03:04.8]} 10. Be3
{[%clk 0:03:10]} 10... f5 {[%clk 0:03:06]} 11. f3 {[%clk 0:03:11.2]} 11... f4
{[%clk 0:03:07.5]} 12. Bf2 {[%clk 0:03:12.4]} 12... g5 {[%clk 0:03:09]} 13. Rc1
{[%clk 0:03:12.6]} 13... Ng6 {[%clk 0:03:10.1]} 14. c5 {[%clk 0:03:13.9]} 14...
Nxc5 {[%clk 0:03:09.7]} 15. b4 {[%clk 0:03:14.9]} 15... Na6 {[%clk 0:03:09.9]}
16. Nd3 {[%clk 0:03:16.4]} 16... Rf7 {[%clk 0:03:08.6]} 17. a4 {[%clk 0:03:17]}
17... Bd7 {[%clk 0:03:09.5]} 18. Nb5 {[%clk 0:03:08.7]} 18... Qb8 {[%clk
0:03:08.7]} 19. Na3 {[%clk 0:02:59.4]} 19... Qe8 {[%clk 0:03:06.3]} 20. b5
{[%clk 0:02:54]} 20... Nb8 {[%clk 0:03:06]} 21. Rxc7 {[%clk 0:02:48.6]} 21... h5
{[%clk 0:03:07]} 22. Rxb7 {[%clk 0:02:42.2]} 22... Qc8 {[%clk 0:03:03.9]} 23.
Rxa7 {[%clk 0:02:37.9]} 23... Rxa7 {[%clk 0:03:03.2]} 24. Bxa7 {[%clk
0:02:39.8]} 24... g4 {[%clk 0:03:04.2]} 25. Qc2 {[%clk 0:02:30.7]} 25... Qd8
{[%clk 0:03:05.2]} 26. Rc1 {[%clk 0:02:15.9]} 26... g3 {[%clk 0:02:55.9]} 27.
Kh1 {[%clk 0:01:51]} 27... gxh2 {[%clk 0:02:26.3]} 28. Qc7 {[%clk 0:01:43]}
28... Qg5 {[%clk 0:02:25.3]} 29. Qxb8+ {[%clk 0:01:36.1]} 29... Kh7 {[%clk
0:02:26]} 30. Bf1 {[%clk 0:01:19.1]} 30... h4 {[%clk 0:02:25.7]} 31. Nf2 {[%clk
0:00:53.4]} 31... h3 {[%clk 0:02:26.7]} 32. Nxh3 {[%clk 0:00:46.1]} 32... Bxh3
{[%clk 0:02:28.2]} 33. gxh3 {[%clk 0:00:47.5]} 33... Nh4 {[%clk 0:02:30.1]} 34.
Qc8 {[%clk 0:00:33.7]} 34... Rxa7 {[%clk 0:02:18]} 35. Qg4 {[%clk 0:00:26.8]}
35... Nxf3 {[%clk 0:02:19.6]} 36. Qxg5 {[%clk 0:00:18]} 36... Nxg5 {[%clk
0:02:20.2]} 37. b6 {[%clk 0:00:19.7]} 37... Rb7 {[%clk 0:02:20]} 38. a5 {[%clk
0:00:19.7]} 38... Nxe4 {[%clk 0:02:21.7]} 39. Nc4 {[%clk 0:00:16.7]} 39... f3
{[%clk 0:02:12.1]} 40. Bd3 {[%clk 0:00:17.7]} 1-0

[Event "*** Titled Tuesday 3|2 Blitz"]
[Site "Chess.com"]
[Date "2017.03.07"]
[Round "7"]
[White "1e41-0"]
[Black "AlexanderL"]
[Result "0-1"]
[WhiteElo "2330"]
[BlackElo "2563"]
[TimeControl "180+2"]
[EndTime "14:36:12 PST"]
[Termination "AlexanderL won by checkmate"]

1. e4 {[%clk 0:03:02]} 1... e5 {[%clk 0:02:53.6]} 2. f4 {[%clk 0:03:02]} 2...
Bc5 {[%clk 0:02:36.3]} 3. Nf3 {[%clk 0:03:00.5]} 3... d6 {[%clk 0:02:37.6]} 4.
c3 {[%clk 0:02:59.8]} 4... Nf6 {[%clk 0:02:38.7]} 5. d4 {[%clk 0:02:59]} 5...
exd4 {[%clk 0:02:39.6]} 6. cxd4 {[%clk 0:03:00.9]} 6... Bb4+ {[%clk 0:02:40.9]}
7. Bd2 {[%clk 0:03:01.5]} 7... Bxd2+ {[%clk 0:02:39.1]} 8. Nbxd2 {[%clk
0:03:03.4]} 8... O-O {[%clk 0:02:40.1]} 9. Bd3 {[%clk 0:03:03.4]} 9... c5 {[%clk
0:02:34.4]} 10. O-O {[%clk 0:03:04.1]} 10... cxd4 {[%clk 0:02:28.7]} 11. e5
{[%clk 0:02:56.5]} 11... Nd5 {[%clk 0:02:24.9]} 12. Bxh7+ {[%clk 0:02:53.5]}
12... Kxh7 {[%clk 0:02:24.7]} 13. Ng5+ {[%clk 0:02:55]} 13... Kg8 {[%clk
0:02:24]} 14. Qh5 {[%clk 0:02:55]} 14... Bf5 {[%clk 0:02:24.8]} 15. Rf3 {[%clk
0:02:40.8]} 15... f6 {[%clk 0:02:07.6]} 16. g4 {[%clk 0:02:14.5]} 16... fxg5
{[%clk 0:02:02.3]} 17. gxf5 {[%clk 0:02:14.9]} 17... Nxf4 {[%clk 0:01:57.7]} 18.
Rxf4 {[%clk 0:02:09.6]} 18... gxf4 {[%clk 0:01:58.6]} 19. Ne4 {[%clk 0:02:10.5]}
19... Qe8 {[%clk 0:00:41]} 20. Nf6+ {[%clk 0:01:53.5]} 20... gxf6 {[%clk
0:00:41.4]} 21. Qg4+ {[%clk 0:01:53.9]} 21... Kf7 {[%clk 0:00:42.8]} 22. e6+
{[%clk 0:01:45.9]} 22... Ke7 {[%clk 0:00:44.1]} 23. Qg7+ {[%clk 0:01:47.1]}
23... Kd8 {[%clk 0:00:45.3]} 24. Qxb7 {[%clk 0:01:47.6]} 24... Rg8+ {[%clk
0:00:46.2]} 25. Kf2 {[%clk 0:01:46.7]} 25... Qc6 {[%clk 0:00:47.2]} 26. e7+
{[%clk 0:01:22.9]} 26... Ke8 {[%clk 0:00:48]} 27. Qb3 {[%clk 0:01:20.3]} 27...
Qg2+ {[%clk 0:00:39.3]} 28. Ke1 {[%clk 0:01:20.8]} 28... Qg1+ {[%clk 0:00:30.7]}
29. Ke2 {[%clk 0:01:14.2]} 29... Qe3+ {[%clk 0:00:32.6]} 30. Qxe3 {[%clk
0:01:14.5]} 30... fxe3 {[%clk 0:00:33.4]} 31. Rd1 {[%clk 0:01:15]} 31... Nc6
{[%clk 0:00:33.9]} 32. Rc1 {[%clk 0:01:15]} 32... Ne5 {[%clk 0:00:34.6]} 33. Rc7
{[%clk 0:01:13.7]} 33... Rg2+ {[%clk 0:00:34.6]} 34. Kf1 {[%clk 0:01:15.3]}
34... Rf2+ {[%clk 0:00:35.9]} 35. Ke1 {[%clk 0:01:15.6]} 35... Nf3+ {[%clk
0:00:37.8]} 36. Kd1 {[%clk 0:01:16.6]} 36... e2+ {[%clk 0:00:39.7]} 37. Kc2
{[%clk 0:01:17.5]} 37... e1=Q+ {[%clk 0:00:41.6]} 38. Kb3 {[%clk 0:01:18.4]}
38... Rb8+ {[%clk 0:00:42.4]} 39. Ka3 {[%clk 0:01:19.2]} 39... Qa5# {[%clk
0:00:43.4]} 0-1

[Event "*** Titled Tuesday 3|2 Blitz"]
[Site "Chess.com"]
[Date "2017.03.07"]
[Round "7"]
[White "Genghis_K"]
[Black "Cayse"]
[Result "1-0"]
[WhiteElo "2716"]
[BlackElo "2563"]
[TimeControl "180+2"]
[EndTime "14:36:23 PST"]
[Termination "Genghis_K won by resignation"]

1. e4 {[%clk 0:03:02]} 1... e5 {[%clk 0:03:00.4]} 2. Nf3 {[%clk 0:03:03.2]} 2...
Nc6 {[%clk 0:03:01.1]} 3. Bb5 {[%clk 0:03:04.8]} 3... a6 {[%clk 0:03:01.8]} 4.
Ba4 {[%clk 0:03:06.4]} 4... Nf6 {[%clk 0:03:02.3]} 5. O-O {[%clk 0:03:07.6]}
5... Be7 {[%clk 0:03:02.8]} 6. Bxc6 {[%clk 0:03:07.7]} 6... dxc6 {[%clk
0:03:03.2]} 7. d3 {[%clk 0:03:09.6]} 7... Nd7 {[%clk 0:03:03.4]} 8. Nbd2 {[%clk
0:03:08.3]} 8... O-O {[%clk 0:03:03.6]} 9. Nc4 {[%clk 0:03:09.9]} 9... f6 {[%clk
0:03:04.6]} 10. Nh4 {[%clk 0:03:11.5]} 10... Nc5 {[%clk 0:03:05.4]} 11. Nf5
{[%clk 0:03:00.6]} 11... Bxf5 {[%clk 0:02:59.4]} 12. exf5 {[%clk 0:03:02.5]}
12... Qd5 {[%clk 0:03:00.3]} 13. Qg4 {[%clk 0:02:56.8]} 13... Rad8 {[%clk
0:02:50]} 14. Be3 {[%clk 0:02:52.7]} 14... e4 {[%clk 0:02:20.6]} 15. b4 {[%clk
0:02:49.1]} 15... Na4 {[%clk 0:02:15.3]} 16. Qxe4 {[%clk 0:02:50]} 16... Qxe4
{[%clk 0:01:57.9]} 17. dxe4 {[%clk 0:02:51.9]} 17... Nc3 {[%clk 0:01:53.4]} 18.
a3 {[%clk 0:02:49.9]} 18... Nxe4 {[%clk 0:01:50.7]} 19. Rfe1 {[%clk 0:02:50.7]}
19... Nd6 {[%clk 0:01:49.3]} 20. Na5 {[%clk 0:02:50.8]} 20... Rd7 {[%clk
0:01:38.7]} 21. Rad1 {[%clk 0:02:47.5]} 21... Rfd8 {[%clk 0:01:38.7]} 22. g4
{[%clk 0:02:41.8]} 22... Nb5 {[%clk 0:01:25.5]} 23. Ra1 {[%clk 0:02:28.8]} 23...
Nxa3 {[%clk 0:01:16.5]} 24. Rxa3 {[%clk 0:02:19.6]} 24... Bxb4 {[%clk
0:01:17.1]} 25. Rea1 {[%clk 0:02:21.2]} 25... Rd1+ {[%clk 0:01:15.8]} 26. Kg2
{[%clk 0:02:22.3]} 26... Bxa3 {[%clk 0:01:16.9]} 27. Rxa3 {[%clk 0:02:24.2]}
27... Rb1 {[%clk 0:01:17.7]} 28. Nb3 {[%clk 0:02:16.1]} 28... Kf7 {[%clk
0:01:11.3]} 29. Nc5 {[%clk 0:02:13.7]} 29... h5 {[%clk 0:01:11.4]} 30. Ne6
{[%clk 0:02:07.2]} 30... Rdd1 {[%clk 0:01:04.2]} 31. h3 {[%clk 0:02:08.5]} 31...
h4 {[%clk 0:01:00]} 32. Kf3 {[%clk 0:01:55.7]} 32... Rh1 {[%clk 0:00:53.2]} 33.
Nf4 {[%clk 0:01:56.2]} 33... Ra1 {[%clk 0:00:51.8]} 34. Rd3 {[%clk 0:01:52.9]}
34... Rhd1 {[%clk 0:00:51.9]} 35. Bd2 {[%clk 0:01:54.2]} 35... c5 {[%clk
0:00:38.6]} 36. Ne6 {[%clk 0:01:48.9]} 36... c4 {[%clk 0:00:34.8]} 37. Rd7+
{[%clk 0:01:45.7]} 37... Kg8 {[%clk 0:00:17.7]} 38. Rd8+ {[%clk 0:01:46.2]}
38... Kh7 {[%clk 0:00:16.1]} 39. Nf8+ {[%clk 0:01:44.2]} 39... Kg8 {[%clk
0:00:14.4]} 40. Ng6+ {[%clk 0:01:45.4]} 1-0

[Event "*** Titled Tuesday 3|2 Blitz"]
[Site "Chess.com"]
[Date "2017.03.07"]
[Round "7"]
[White "JeremDev"]
[Black "oggy1984"]
[Result "0-1"]
[WhiteElo "2227"]
[BlackElo "2354"]
[TimeControl "180+2"]
[EndTime "14:36:40 PST"]
[Termination "oggy1984 won by checkmate"]

1. e4 {[%clk 0:03:01.9]} 1... e5 {[%clk 0:02:59.9]} 2. Nf3 {[%clk 0:03:02.5]}
2... Nc6 {[%clk 0:03:00.7]} 3. Bc4 {[%clk 0:03:02]} 3... Bc5 {[%clk 0:03:00.4]}
4. O-O {[%clk 0:03:02.2]} 4... d6 {[%clk 0:02:56.3]} 5. c3 {[%clk 0:03:01.2]}
5... Nf6 {[%clk 0:02:34]} 6. Re1 {[%clk 0:02:53.8]} 6... O-O {[%clk 0:02:33.9]}
7. h3 {[%clk 0:02:53.6]} 7... a6 {[%clk 0:02:32.9]} 8. d4 {[%clk 0:02:54]} 8...
Ba7 {[%clk 0:02:28.9]} 9. a4 {[%clk 0:02:19.1]} 9... Re8 {[%clk 0:02:26.9]} 10.
Ng5 {[%clk 0:02:15.2]} 10... Re7 {[%clk 0:02:19.5]} 11. Qb3 {[%clk 0:01:45]}
11... Qe8 {[%clk 0:02:10.9]} 12. dxe5 {[%clk 0:01:15.1]} 12... Nxe5 {[%clk
0:01:40.7]} 13. Bf1 {[%clk 0:01:13.4]} 13... h6 {[%clk 0:01:38.2]} 14. Nf3
{[%clk 0:01:10.7]} 14... Nxf3+ {[%clk 0:01:36.9]} 15. gxf3 {[%clk 0:01:12.6]}
15... Nh5 {[%clk 0:01:26.8]} 16. Na3 {[%clk 0:01:08.2]} 16... Qd8 {[%clk
0:00:56.9]} 17. Be3 {[%clk 0:01:02.6]} 17... Bxe3 {[%clk 0:00:55.1]} 18. fxe3
{[%clk 0:01:02.9]} 18... Re5 {[%clk 0:00:51.4]} 19. Bg2 {[%clk 0:00:33.8]} 19...
Qh4 {[%clk 0:00:46.2]} 20. f4 {[%clk 0:00:29.5]} 20... Bxh3 {[%clk 0:00:38.8]}
21. fxe5 {[%clk 0:00:29.6]} 21... Bxg2 {[%clk 0:00:39.5]} 22. Kxg2 {[%clk
0:00:23.5]} 22... Qg3+ {[%clk 0:00:36.8]} 23. Kf1 {[%clk 0:00:19.5]} 23... Qh2
{[%clk 0:00:27.5]} 24. Qc2 {[%clk 0:00:05.4]} 24... Ng3# {[%clk 0:00:27.4]} 0-1

[Event "*** Titled Tuesday 3|2 Blitz"]
[Site "Chess.com"]
[Date "2017.03.07"]
[Round "7"]
[White "NTBT_DHS"]
[Black "Feegus"]
[Result "1-0"]
[WhiteElo "2554"]
[BlackElo "2384"]
[TimeControl "180+2"]
[EndTime "14:36:42 PST"]
[Termination "NTBT_DHS won by resignation"]

1. d4 {[%clk 0:03:00.8]} 1... Nf6 {[%clk 0:02:59]} 2. c4 {[%clk 0:03:02.2]} 2...
c5 {[%clk 0:03:00.2]} 3. d5 {[%clk 0:03:03.3]} 3... b5 {[%clk 0:03:01.9]} 4.
cxb5 {[%clk 0:03:04.5]} 4... a6 {[%clk 0:03:03.6]} 5. bxa6 {[%clk 0:03:05.9]}
5... g6 {[%clk 0:03:05.1]} 6. Nc3 {[%clk 0:03:07.1]} 6... Bxa6 {[%clk
0:03:06.5]} 7. g3 {[%clk 0:03:07.6]} 7... d6 {[%clk 0:03:07.3]} 8. Bg2 {[%clk
0:03:09.1]} 8... Nbd7 {[%clk 0:03:09]} 9. Nf3 {[%clk 0:03:10.7]} 9... Nb6 {[%clk
0:03:09.8]} 10. b3 {[%clk 0:03:05.6]} 10... Bg7 {[%clk 0:02:59.4]} 11. Rb1
{[%clk 0:03:05.6]} 11... O-O {[%clk 0:02:42.1]} 12. O-O {[%clk 0:03:05.4]} 12...
Ra7 {[%clk 0:02:43.3]} 13. Bb2 {[%clk 0:02:47.6]} 13... Bb7 {[%clk 0:02:37.8]}
14. e4 {[%clk 0:02:39.4]} 14... Nfd7 {[%clk 0:02:26.5]} 15. a4 {[%clk
0:02:37.2]} 15... Ba6 {[%clk 0:02:06.9]} 16. Re1 {[%clk 0:02:35.7]} 16... Qa8
{[%clk 0:01:46.6]} 17. Nb5 {[%clk 0:02:35.4]} 17... Bxb5 {[%clk 0:01:29]} 18.
Bxg7 {[%clk 0:02:36.2]} 18... Kxg7 {[%clk 0:01:26.5]} 19. axb5 {[%clk
0:02:37.4]} 19... f6 {[%clk 0:01:27.3]} 20. b4 {[%clk 0:02:31.6]} 20... Ra3
{[%clk 0:01:21.5]} 21. bxc5 {[%clk 0:02:30.9]} 21... Nxc5 {[%clk 0:01:20.8]} 22.
Nd4 {[%clk 0:02:31.8]} 22... Kg8 {[%clk 0:01:12.6]} 23. Qg4 {[%clk 0:02:23.3]}
23... Nc4 {[%clk 0:00:50.2]} 24. Nc6 {[%clk 0:01:41.5]} 24... Ne5 {[%clk
0:00:49]} 25. Qd1 {[%clk 0:01:35.8]} 25... Qb7 {[%clk 0:00:44.2]} 26. h3 {[%clk
0:01:29]} 26... Rfa8 {[%clk 0:00:41.8]} 27. Kh2 {[%clk 0:01:29.6]} 27... Kf7
{[%clk 0:00:22.8]} 28. f4 {[%clk 0:01:20.2]} 28... Ned3 {[%clk 0:00:23.1]} 29.
Re3 {[%clk 0:01:20.9]} 29... Qb6 {[%clk 0:00:21.4]} 30. e5 {[%clk 0:01:15.3]}
30... Rc3 {[%clk 0:00:13.5]} 31. exd6 {[%clk 0:01:12.7]} 31... exd6 {[%clk
0:00:14.7]} 32. Qg4 {[%clk 0:01:11.8]} 32... Ra2 {[%clk 0:00:10.1]} 33. Re7+
{[%clk 0:01:11.3]} 33... Kg8 {[%clk 0:00:10.6]} 34. Qc8+ {[%clk 0:01:12.2]} 1-0